fUSD/lending_fUSD_20240428
["ID","MTS","AMOUNT","RATE_DAILY","PERIOD"]
[324810800,1714339945726,-426.22,0.00016438,2]
[324810801,1714339945737,-524.85,0.00016438,2]
[324810802,1714339945747,-784.13,0.00016438,2]
[324810803,1714339945756,-3106.8,0.00016438,2]
[324810804,1714339945766,-1332.25,0.00016438,2]
[324810805,1714339945776,-1770.89,0.00016438,2]
[324810806,1714339945786,-500.0,0.00016438,2]
[324810807,1714339945800,-3285.67,0.00016438,2]
[324810808,1714339945811,-1973.0,0.00016438,2]
[324810809,1714339945821,-581.39,0.00016438,2]
[324810810,1714339945832,-5056.57,0.00016438,2]
[324810811,1714339945843,-528.94,0.00016438,2]
[324810812,1714339945853,-1960.25,0.00016438,2]
[324810813,1714339945862,-854.46,0.00016438,2]
[324810814,1714339945874,-505.33,0.00016438,2]
[324810815,1714339945887,-1460.22,0.00016438,2]
[324810816,1714339945896,-4144.13,0.00016438,2]
[324810817,1714339945906,-2730.97,0.00016438,2]
[324810818,1714339945915,-1318.77,0.00016438,2]
[324810819,1714339945925,-2002.94,0.00016438,2]
[324810820,1714339945934,-1001.05,0.00016438,2]
[324810821,1714339945945,-9331.99,0.00016438,2]
[324810822,1714339945955,-4277.49,0.00016438,2]
[324810823,1714339945965,-5193.46,0.00016438,2]
[324810824,1714339945975,-775.85,0.00016438,2]
[324810825,1714339945984,-743.46,0.00016438,2]
[324810826,1714339945993,-200.0,0.00016438,2]
[324810827,1714339946003,-7145.9,0.00016438,2]
[324810828,1714339946012,-150.0,0.00016438,2]
[324810829,1714339946021,-1224.205964,0.000165,2]
[324810830,1714339946032,-152.83625942,0.00016589,2]
[324810831,1714339946042,-150.0,0.00016603,2]
[324810832,1714339946052,-153.71017335,0.00016618,2]
[324810833,1714339946061,-254.35491349,0.00016619,2]
[324810834,1714339946071,-254.35491349,0.0001662,2]
[324810835,1714339946081,-518.0,0.00016658,2]
[324810836,1714339946091,-150.0,0.00016666,2]
[324810837,1714339946100,-195.60661363,0.00016667,2]
[324810838,1714339946111,-150.0,0.00016672,2]
[324810839,1714339946121,-1086.9123399,0.00016701,2]
[324810840,1714339946132,-150.0,0.00016704,2]
[324810841,1714339946142,-506.83,0.00016712,2]
[324810842,1714339946151,-199.90238684,0.00016712,2]
[324810843,1714339946162,-541.24,0.00016712,2]
[324810844,1714339946171,-359.01520601,0.00016712,2]
[324810845,1714339946180,-179.28543689,0.00016712,2]
[324810846,1714339946192,-517.57,0.00016712,2]
[324810847,1714339946202,-586.34,0.00016712,2]
[324810848,1714339946213,-733.89,0.00016712,2]
[324810849,1714339946224,-674.04,0.00016712,2]
[324810850,1714339946233,-552.07,0.00016712,2]
[324810851,1714339946242,-588.66,0.00016712,2]
[324810852,1714339946251,-798.42,0.00016712,2]
[324810853,1714339946260,-500.0,0.00016712,2]
[324810854,1714339946269,-928.66,0.00016712,2]
[324810855,1714339946278,-505.51,0.00016712,2]
[324810856,1714339946287,-435.7051941,0.00016712,2]
[324810857,1714339946296,-903.89,0.00016712,2]
[324810858,1714339946306,-737.63,0.00016712,2]
[324810859,1714339946315,-864.97,0.00016712,2]
[324810860,1714339946324,-718.49,0.00016712,2]
[324810861,1714339946332,-504.53,0.00016712,2]
[324810862,1714339946342,-594.05,0.00016712,2]
[324810863,1714339946350,-267.89,0.00016712,2]
[324810864,1714339946359,-500.0,0.00016712,2]
[324810865,1714339946368,-581.15417291,0.00016712,2]
[324810866,1714339946377,-870.38,0.00016712,2]
[324810867,1714339946386,-501.18,0.00016712,2]
[324810868,1714339946396,-610.01,0.00016712,2]
[324810869,1714339946405,-567.57,0.00016712,2]
[324810870,1714339946414,-1451.39,0.00016712,2]
[324810871,1714339946423,-1302.89,0.00016712,2]
[324810872,1714339946432,-545.45,0.00016712,2]
[324810873,1714339946442,-625.0,0.00016712,2]
[324810874,1714339946451,-525.6,0.00016712,2]
[324810875,1714339946461,-585.48,0.00016712,2]
[324810876,1714339946471,-584.64,0.00016712,2]
[324810877,1714339946480,-857.33,0.00016712,2]
[324810878,1714339946490,-704.02,0.00016712,2]
[324810879,1714339946499,-1320.75,0.00016712,2]
[324810880,1714339946509,-507.58,0.00016712,2]
[324810881,1714339946518,-730.12,0.00016712,2]
[324810882,1714339946527,-596.65,0.00016712,2]
[324810883,1714339946537,-369.9,0.00016712,2]
[324810884,1714339946546,-565.97,0.00016712,2]
[324810885,1714339946555,-875.78,0.00016712,2]
[324810886,1714339946564,-526.69,0.00016712,2]
[324810887,1714339946573,-560.54,0.00016712,2]
[324810888,1714339946582,-736.07,0.00016712,2]
[324810889,1714339946592,-500.0,0.00016712,2]
[324810890,1714339946601,-604.78,0.00016712,2]
[324810891,1714339946611,-523.54,0.00016712,2]
[324810892,1714339946620,-2956.01,0.00016712,2]
[324810893,1714339946629,-565.94,0.00016712,2]
[324810894,1714339946639,-290.51,0.00016712,2]
[324810895,1714339946648,-825.93,0.00016712,2]
[324810896,1714339946657,-602.04,0.00016712,2]
[324810897,1714339946666,-651.65,0.00016712,2]
[324810898,1714339946675,-1568.74,0.00016712,2]
[324810899,1714339946684,-520.26,0.00016712,2]
[324810900,1714339946694,-500.0,0.00016712,2]
[324810901,1714339946703,-500.0,0.00016712,2]
[324810902,1714339946713,-1140.77,0.00016712,2]
[324810903,1714339946722,-549.86,0.00016712,2]
[324810904,1714339946732,-960.02,0.00016712,2]
[324810905,1714339946741,-1723.08,0.00016712,2]
[324810906,1714339946751,-579.27203605,0.00016712,2]
[324810907,1714339946760,-555.74,0.00016712,2]
[324810908,1714339946770,-1272.72,0.00016712,2]
[324810909,1714339946779,-1044.49,0.00016712,2]
[324810910,1714339946789,-854.35,0.00016712,2]
[324810911,1714339946802,-880.39,0.00016712,2]
[324810912,1714339946812,-1228.27,0.00016712,2]
[324810913,1714339946823,-729.04,0.00016712,2]
[324810914,1714339946835,-530.05,0.00016712,2]
[324810915,1714339946844,-3505.37,0.00016712,2]
[324810916,1714339946853,-797.92,0.00016712,2]
[324810917,1714339946862,-529.45,0.00016712,2]
[324810918,1714339946873,-629.63,0.00016712,2]
[324810919,1714339946883,-1082.28,0.00016712,2]
[324810920,1714339946893,-3192.23,0.00016712,2]
[324810921,1714339946904,-4836.83,0.00016712,2]
[324810922,1714339946913,-1419.08,0.00016712,2]
[324810923,1714339946923,-3170.41,0.00016712,2]
[324810924,1714339946933,-554.07,0.00016712,2]
[324810925,1714339946942,-1075.74,0.00016712,2]
[324810926,1714339946952,-3460.09,0.00016712,2]
[324810927,1714339946962,-1169.99,0.00016712,2]
[324810928,1714339946971,-812.15,0.00016712,2]
[324810929,1714339946980,-9425.46,0.00016712,2]
[324810930,1714339946990,-1842.15,0.00016712,2]
[324810931,1714339946999,-500.0,0.00016712,2]
[324810932,1714339947008,-1069.53,0.00016712,2]
[324810933,1714339947017,-500.0,0.00016712,2]
[324810934,1714339947027,-14272.99,0.00016712,2]
[324810935,1714339947036,-544.14,0.00016712,2]
[324810936,1714339947045,-7051.41,0.00016712,2]
[324810937,1714339947055,-261.81,0.00016712,2]
[324810938,1714339947064,-2707.78,0.00016712,2]
[324810939,1714339947074,-1038.22,0.00016712,2]
[324810940,1714339947082,-789.36,0.00016712,2]
[324810941,1714339947091,-2766.64,0.00016712,2]
[324810942,1714339947101,-987.03,0.00016712,2]
[324810943,1714339947110,-1211.54,0.00016712,2]
[324810944,1714339947119,-675.35,0.00016712,2]
[324810945,1714339947129,-1666.13,0.00016712,2]
[324810946,1714339947138,-1516.18,0.00016712,2]
[324810947,1714339947147,-1349.22,0.00016712,2]
[324810948,1714339947157,-1899.29,0.00016712,2]
[324810949,1714339947166,-6591.59,0.00016712,2]
[324810950,1714339947175,-1988.95,0.00016712,2]
[324810951,1714339947184,-783.36,0.00016712,2]
[324810952,1714339947193,-1261.65,0.00016712,2]
[324810953,1714339947202,-2135.06,0.00016712,2]
[324810954,1714339947213,-500.0,0.00016712,2]
[324810955,1714339947222,-562.7,0.00016712,2]
[324810956,1714339947231,-500.0,0.00016712,2]
[324810957,1714339947239,-6232.35,0.00016712,2]
[324810958,1714339947249,-1410.0,0.00016712,2]
[324810959,1714339947259,-659.22,0.00016712,2]
[324810960,1714339947268,-1672.92,0.00016712,2]
[324810961,1714339947278,-1799.04,0.00016712,2]
[324810962,1714339947286,-895.24,0.00016712,2]
[324810963,1714339947295,-1513.28,0.00016712,2]
[324810964,1714339947304,-6800.76,0.00016712,2]
[324810965,1714339947313,-753.18,0.00016712,2]
[324810966,1714339947323,-782.1,0.00016712,2]
[324810967,1714339947331,-500.0,0.00016712,2]
[324810968,1714339947340,-1652.85,0.00016712,2]
[324810969,1714339947349,-1733.37,0.00016712,2]
[324810970,1714339947359,-1590.77,0.00016712,2]
[324810971,1714339947369,-12133.37,0.00016712,2]
[324810972,1714339947380,-2025.62,0.00016712,2]
[324810973,1714339947390,-1421.85,0.00016712,2]
[324810974,1714339947399,-1135.8,0.00016712,2]
[324810975,1714339947412,-4575.67,0.00016712,2]
[324810976,1714339947422,-646.36778096,0.00016712,2]
[324810977,1714339947433,-6107.04,0.00016712,2]
[324810978,1714339947443,-1396.35,0.00016712,2]
[324810979,1714339947453,-998.38,0.00016712,2]
[324810980,1714339947464,-2527.69,0.00016712,2]
[324810981,1714339947473,-2789.13,0.00016712,2]
[324810982,1714339947483,-1761.96,0.00016712,2]
[324810983,1714339947493,-1062.84,0.00016712,2]
[324810984,1714339947505,-1977.9,0.00016712,2]
[324810985,1714339947515,-2491.39,0.00016712,2]
[324810986,1714339947526,-3361.84,0.00016712,2]
[324810987,1714339947535,-1098.32,0.00016712,2]
[324810988,1714339947545,-1081.51,0.00016712,2]
[324810989,1714339947557,-2735.15,0.00016712,2]
[324810990,1714339947568,-500.0,0.00016712,2]
[324810991,1714339947578,-1862.58,0.00016712,2]
[324810992,1714339947587,-4338.42,0.00016712,2]
[324810993,1714339947597,-1752.48,0.00016712,2]
[324810994,1714339947606,-844.65,0.00016712,2]
[324810995,1714339947617,-2116.48,0.00016712,2]
[324810996,1714339947626,-1415.56,0.00016712,2]
[324810997,1714339947635,-552.51,0.00016712,2]
[324810998,1714339947644,-1696.77,0.00016712,2]
[324810999,1714339947653,-7394.13,0.00016712,2]
[324811000,1714339947662,-500.0,0.00016712,2]
[324811001,1714339947672,-2704.4,0.00016712,2]
[324811002,1714339947681,-547.48,0.00016712,2]
[324811003,1714339947690,-869.1,0.00016712,2]
[324811004,1714339947699,-3366.67,0.00016712,2]
[324811005,1714339947709,-709.72,0.00016712,2]
[324811006,1714339947718,-849.0,0.00016712,2]
[324811007,1714339947727,-4609.23,0.00016712,2]
[324811008,1714339947736,-1257.26,0.00016712,2]
[324811009,1714339947746,-500.0,0.00016712,2]
[324811010,1714339947754,-972.25,0.00016712,2]
[324811011,1714339947764,-1051.8,0.00016712,2]
[324811012,1714339947772,-1129.36,0.00016712,2]
[324811013,1714339947782,-1025.92,0.00016712,2]
[324811014,1714339947794,-1721.28,0.00016712,2]
[324811015,1714339947803,-505.66,0.00016712,2]
[324811016,1714339947813,-784.13,0.00016712,2]
[324811017,1714339947822,-3106.8,0.00016712,2]
[324811018,1714339947832,-1332.25,0.00016712,2]
[324811019,1714339947841,-1770.89,0.00016712,2]
[324811020,1714339947850,-179.7,0.00016712,2]
[324811021,1714339947860,-3285.67,0.00016712,2]
[324811022,1714339947871,-1973.0,0.00016712,2]
[324811023,1714339947881,-581.39,0.00016712,2]
[324811024,1714339947890,-5056.57,0.00016712,2]
[324811025,1714339947900,-528.94,0.00016712,2]
[324811026,1714339947910,-1960.25,0.00016712,2]
[324811027,1714339947919,-854.46,0.00016712,2]
[324811028,1714339947928,-505.33,0.00016712,2]
[324811029,1714339947937,-1460.22,0.00016712,2]
[324811030,1714339947946,-4144.13,0.00016712,2]
[324811031,1714339947956,-2730.97,0.00016712,2]
[324811032,1714339947966,-1318.77,0.00016712,2]
[324811033,1714339947975,-2002.94,0.00016712,2]
[324811034,1714339947984,-1001.05,0.00016712,2]
[324811035,1714339947993,-9331.99,0.00016712,2]
[324811036,1714339948002,-4277.49,0.00016712,2]
[324811037,1714339948012,-5193.46,0.00016712,2]
[324811038,1714339948021,-775.85,0.00016712,2]
[324811039,1714339948031,-743.46,0.00016712,2]
[324811040,1714339948040,-160.89,0.00016712,2]
[324811041,1714339948049,-150.0,0.00016712,2]
[324811042,1714339948059,-254.35491349,0.00016737,2]
[324811043,1714339948068,-151.90207473,0.00016792,2]
[324811044,1714339948077,-150.0,0.00016834,2]
[324811045,1714339948087,-254.35491349,0.00016872,2]
[324811046,1714339948097,-153.18091199,0.00016889,2]
[324811047,1714339948248,-161.55955016,0.000169,2]
[324811048,1714339948259,-195.60661363,0.00016967,2]
[324811049,1714339948268,-873.1095967,0.00016972,2]
[324811050,1714339948277,-659.3068536,0.00016974,2]
[324811051,1714339948286,-506.83,0.00016986,2]
[324811052,1714339948295,-517.57,0.00016986,2]
[324811053,1714339948304,-586.34,0.00016986,2]
[324811054,1714339948313,-733.89,0.00016986,2]
[324811055,1714339948323,-674.04,0.00016986,2]
[324811056,1714339948332,-552.07,0.00016986,2]
[324811057,1714339948341,-588.66,0.00016986,2]
[324811058,1714339948350,-798.42,0.00016986,2]
[324811059,1714339948360,-500.0,0.00016986,2]
[324811060,1714339948370,-928.66,0.00016986,2]
[324811061,1714339948379,-505.51,0.00016986,2]
[324811062,1714339948388,-903.89,0.00016986,2]
[324811063,1714339948397,-737.63,0.00016986,2]
[324811064,1714339948406,-864.97,0.00016986,2]
[324811065,1714339948415,-718.49,0.00016986,2]
[324811066,1714339948425,-504.53,0.00016986,2]
[324811067,1714339948434,-594.05,0.00016986,2]
[324811068,1714339948443,-514.62538032,0.00016986,2]
[324811069,1714339948452,-870.38,0.00016986,2]
[324811070,1714339948461,-501.18,0.00016986,2]
[324811071,1714339948470,-610.01,0.00016986,2]
[324811072,1714339948480,-567.57,0.00016986,2]
[324811073,1714339948492,-1451.39,0.00016986,2]
[324811074,1714339948502,-1302.89,0.00016986,2]
[324811075,1714339948512,-545.45,0.00016986,2]
[324811076,1714339948521,-525.6,0.00016986,2]
[324811077,1714339948530,-585.48,0.00016986,2]
[324811078,1714339948540,-584.64,0.00016986,2]
[324811079,1714339948549,-857.33,0.00016986,2]
[324811080,1714339948558,-704.02,0.00016986,2]
[324811081,1714339948568,-1320.75,0.00016986,2]
[324811082,1714339948577,-507.58,0.00016986,2]
[324811083,1714339948586,-730.12,0.00016986,2]
[324811084,1714339948595,-596.65,0.00016986,2]
[324811085,1714339948605,-369.9,0.00016986,2]
[324811086,1714339948614,-565.97,0.00016986,2]
[324811087,1714339948624,-875.78,0.00016986,2]
[324811088,1714339948633,-526.69,0.00016986,2]
[324811089,1714339948642,-560.54,0.00016986,2]
[324811090,1714339948652,-736.07,0.00016986,2]
[324811091,1714339948662,-500.0,0.00016986,2]
[324811092,1714339948671,-604.78,0.00016986,2]
[324811093,1714339948680,-523.54,0.00016986,2]
[324811094,1714339948689,-2956.01,0.00016986,2]
[324811095,1714339948698,-565.94,0.00016986,2]
[324811096,1714339948707,-825.93,0.00016986,2]
[324811097,1714339948718,-602.04,0.00016986,2]
[324811098,1714339948728,-651.65,0.00016986,2]
[324811099,1714339948737,-1568.74,0.00016986,2]
[324811100,1714339948746,-520.26,0.00016986,2]
[324811101,1714339948755,-163.0,0.00016986,2]
[324811102,1714339948765,-500.0,0.00016986,2]
[324811103,1714339948774,-1140.77,0.00016986,2]
[324811104,1714339948782,-549.86,0.00016986,2]
[324811105,1714339948794,-960.02,0.00016986,2]
[324811106,1714339948803,-1723.08,0.00016986,2]
[324811107,1714339948813,-555.74,0.00016986,2]
[324811108,1714339948821,-1272.72,0.00016986,2]
[324811109,1714339948831,-1044.49,0.00016986,2]
[324811110,1714339948841,-854.35,0.00016986,2]
[324811111,1714339948851,-880.39,0.00016986,2]
[324811112,1714339948861,-1228.27,0.00016986,2]
[324811113,1714339948873,-729.04,0.00016986,2]
[324811114,1714339948882,-530.05,0.00016986,2]
[324811115,1714339948891,-3505.37,0.00016986,2]
[324811116,1714339948901,-797.92,0.00016986,2]
[324811117,1714339948910,-529.45,0.00016986,2]
[324811118,1714339948919,-629.63,0.00016986,2]
[324811119,1714339948929,-1082.28,0.00016986,2]
[324811120,1714339948939,-3192.23,0.00016986,2]
[324811121,1714339948948,-4836.83,0.00016986,2]
[324811122,1714339948958,-1419.08,0.00016986,2]
[324811123,1714339948969,-3170.41,0.00016986,2]
[324811124,1714339948978,-554.07,0.00016986,2]
[324811125,1714339948987,-1075.74,0.00016986,2]
[324811126,1714339948996,-3460.09,0.00016986,2]
[324811127,1714339949006,-1169.99,0.00016986,2]
[324811128,1714339949016,-812.15,0.00016986,2]
[324811129,1714339949025,-9425.46,0.00016986,2]
[324811130,1714339949035,-1842.15,0.00016986,2]
[324811131,1714339949044,-577.84,0.00016986,2]
[324811132,1714339949054,-1069.53,0.00016986,2]
[324811133,1714339949063,-500.0,0.00016986,2]
[324811134,1714339949073,-14272.99,0.00016986,2]
[324811135,1714339949083,-544.14,0.00016986,2]
[324811136,1714339949092,-7051.41,0.00016986,2]
[324811137,1714339949101,-2707.78,0.00016986,2]
[324811138,1714339949110,-1038.22,0.00016986,2]
[324811139,1714339949119,-789.36,0.00016986,2]
[324811140,1714339949128,-2766.64,0.00016986,2]
[324811141,1714339949137,-987.03,0.00016986,2]
[324811142,1714339949146,-1211.54,0.00016986,2]
[324811143,1714339949155,-675.35,0.00016986,2]
[324811144,1714339949165,-1666.13,0.00016986,2]
[324811145,1714339949175,-1516.18,0.00016986,2]
[324811146,1714339949184,-1349.22,0.00016986,2]
[324811147,1714339949194,-1899.29,0.00016986,2]
[324811148,1714339949203,-6591.59,0.00016986,2]
[324811149,1714339949212,-1988.95,0.00016986,2]
[324811150,1714339949224,-783.36,0.00016986,2]
[324811151,1714339949234,-1261.65,0.00016986,2]
[324811152,1714339949243,-2135.06,0.00016986,2]
[324811153,1714339949252,-500.0,0.00016986,2]
[324811154,1714339949261,-562.7,0.00016986,2]
[324811155,1714339949270,-646.03184862,0.00016986,2]
[324811156,1714339949280,-6232.35,0.00016986,2]
[324811157,1714339949289,-1410.0,0.00016986,2]
[324811158,1714339949298,-659.22,0.00016986,2]
[324811159,1714339949308,-1672.92,0.00016986,2]
[324811160,1714339949317,-1799.04,0.00016986,2]
[324811161,1714339949326,-895.24,0.00016986,2]
[324811162,1714339949335,-1513.28,0.00016986,2]
[324811163,1714339949344,-6800.76,0.00016986,2]
[324811164,1714339949354,-753.18,0.00016986,2]
[324811165,1714339949363,-782.1,0.00016986,2]
[324811166,1714339949373,-500.0,0.00016986,2]
[324811167,1714339949382,-1652.85,0.00016986,2]
[324811168,1714339949391,-1733.37,0.00016986,2]
[324811169,1714339949401,-1590.77,0.00016986,2]
[324811170,1714339949412,-12133.37,0.00016986,2]
[324811171,1714339949421,-2025.62,0.00016986,2]
[324811172,1714339949431,-1135.8,0.00016986,2]
[324811173,1714339949442,-1421.85,0.00016986,2]
[324811174,1714339949452,-4575.67,0.00016986,2]
[324811175,1714339949461,-6107.04,0.00016986,2]
[324811176,1714339949473,-1396.35,0.00016986,2]
[324811177,1714339949482,-998.38,0.00016986,2]
[324811178,1714339949491,-2527.69,0.00016986,2]
[324811179,1714339949501,-2789.13,0.00016986,2]
[324811180,1714339949509,-1761.96,0.00016986,2]
[324811181,1714339949519,-1062.84,0.00016986,2]
[324811182,1714339949528,-1977.9,0.00016986,2]
[324811183,1714339949538,-2491.39,0.00016986,2]
[324811184,1714339949547,-3361.84,0.00016986,2]
[324811185,1714339949556,-1098.32,0.00016986,2]
[324811186,1714339949565,-1081.51,0.00016986,2]
[324811187,1714339949574,-2735.15,0.00016986,2]
[324811188,1714339949584,-1862.58,0.00016986,2]
[324811189,1714339949594,-4338.42,0.00016986,2]
[324811190,1714339949603,-1752.48,0.00016986,2]
[324811191,1714339949612,-844.65,0.00016986,2]
[324811192,1714339949621,-2116.48,0.00016986,2]
[324811193,1714339949630,-1415.56,0.00016986,2]
[324811194,1714339949639,-552.51,0.00016986,2]
[324811195,1714339949648,-1696.77,0.00016986,2]
[324811196,1714339949658,-7394.13,0.00016986,2]
[324811197,1714339949668,-500.0,0.00016986,2]
[324811198,1714339949678,-2704.4,0.00016986,2]
[324811199,1714339949687,-547.48,0.00016986,2]
[324811200,1714339949697,-869.1,0.00016986,2]
[324811201,1714339949706,-3366.67,0.00016986,2]
[324811202,1714339949715,-709.72,0.00016986,2]
[324811203,1714339949724,-849.0,0.00016986,2]
[324811204,1714339949733,-4609.23,0.00016986,2]
[324811205,1714339949742,-1257.26,0.00016986,2]
[324811206,1714339949751,-628.18,0.00016986,2]
[324811207,1714339949760,-972.25,0.00016986,2]
[324811208,1714339949769,-1051.8,0.00016986,2]
[324811209,1714339949778,-1129.36,0.00016986,2]
[324811210,1714339949788,-1025.92,0.00016986,2]
[324811211,1714339949800,-1721.28,0.00016986,2]
[324811212,1714339949810,-505.66,0.00016986,2]
[324811213,1714339949819,-784.13,0.00016986,2]
[324811214,1714339949828,-3106.8,0.00016986,2]
[324811215,1714339949839,-1332.25,0.00016986,2]
[324811216,1714339949848,-1770.89,0.00016986,2]
[324811217,1714339949857,-3285.67,0.00016986,2]
[324811218,1714339949866,-1973.0,0.00016986,2]
[324811219,1714339949876,-581.39,0.00016986,2]
[324811220,1714339949886,-5056.57,0.00016986,2]
[324811221,1714339949896,-528.94,0.00016986,2]
[324811222,1714339949906,-1960.25,0.00016986,2]
[324811223,1714339949915,-854.46,0.00016986,2]
[324811224,1714339949924,-505.33,0.00016986,2]
[324811225,1714339949934,-1460.22,0.00016986,2]
[324811226,1714339949943,-4144.13,0.00016986,2]
[324811227,1714339949952,-2730.97,0.00016986,2]
[324811228,1714339949961,-1318.77,0.00016986,2]
[324811229,1714339949972,-2002.94,0.00016986,2]
[324811230,1714339949981,-1001.05,0.00016986,2]
[324811231,1714339949990,-9331.99,0.00016986,2]
[324811232,1714339949999,-4277.49,0.00016986,2]
[324811233,1714339950009,-5193.46,0.00016986,2]
[324811234,1714339950018,-775.85,0.00016986,2]
[324811235,1714339950028,-743.46,0.00016986,2]
[324811236,1714339950037,-154.13959312,0.00017066,2]
[324811237,1714339950046,-389.17,0.00017083,2]
[324811238,1714339950055,-521.0,0.00017206,2]
[324811239,1714339950065,-155.33423124,0.00017206,2]
[324811240,1714339950075,-150.0,0.00017241,2]
[324811241,1714339950086,-150.0,0.00017246,2]
[324811242,1714339950096,-251.042906,0.00017248,4]
[324811243,1714339950104,-150.0,0.00017253,2]
[324811244,1714339950114,-150.0,0.00017259,2]
[324811245,1714339950123,-506.85,0.0001726,2]
[324811246,1714339950134,-517.79,0.0001726,2]
[324811247,1714339950143,-586.38,0.0001726,2]
[324811248,1714339950152,-733.89733437,0.0001726,2]
[324811249,1714339950162,-674.13757061,0.0001726,2]
[324811250,1714339950171,-552.19718799,0.0001726,2]
[324811251,1714339950181,-588.73,0.0001726,2]
[324811252,1714339950190,-798.64,0.0001726,2]
[324811253,1714339950199,-189.52,0.0001726,2]
[324811254,1714339950208,-928.7695717,0.0001726,2]
[324811255,1714339950217,-505.55,0.0001726,2]
[324811256,1714339950227,-904.11,0.0001726,2]
[324811257,1714339950237,-737.64,0.0001726,2]
[324811258,1714339950246,-865.01,0.0001726,2]
[324811259,1714339950255,-718.58,0.0001726,2]
[324811260,1714339950264,-504.58,0.0001726,2]
[324811261,1714339950273,-594.09,0.0001726,2]
[324811262,1714339950282,-870.57,0.0001726,2]
[324811263,1714339950291,-501.31,0.0001726,2]
[324811264,1714339950302,-610.23159061,0.0001726,2]
[324811265,1714339950312,-567.72,0.0001726,2]
[324811266,1714339950321,-1451.47,0.0001726,2]
[324811267,1714339950331,-1303.07,0.0001726,2]
[324811268,1714339950340,-545.6,0.0001726,2]
[324811269,1714339950350,-525.79,0.0001726,2]
[324811270,1714339950359,-585.71,0.0001726,2]
[324811271,1714339950368,-584.67834006,0.0001726,2]
[324811272,1714339950378,-857.34127735,0.0001726,2]
[324811273,1714339950387,-704.22,0.0001726,2]
[324811274,1714339950397,-1320.88,0.0001726,2]
[324811275,1714339950407,-507.75082427,0.0001726,2]
[324811276,1714339950418,-730.23,0.0001726,2]
[324811277,1714339950427,-596.69,0.0001726,2]
[324811278,1714339950436,-369.97,0.0001726,2]
[324811279,1714339950445,-566.06,0.0001726,2]
[324811280,1714339950454,-875.92404045,0.0001726,2]
[324811281,1714339950464,-526.73,0.0001726,2]
[324811282,1714339950473,-560.75,0.0001726,2]
[324811283,1714339950628,-736.13796864,0.0001726,2]
[324811284,1714339950638,-298.81,0.0001726,2]
[324811285,1714339950647,-604.85004695,0.0001726,2]
[324811286,1714339950656,-523.69,0.0001726,2]
[324811287,1714339950666,-2956.03,0.0001726,2]
[324811288,1714339950675,-565.99,0.0001726,2]
[324811289,1714339950685,-826.1,0.0001726,2]
[324811290,1714339950694,-602.19,0.0001726,2]
[324811291,1714339950703,-651.78,0.0001726,2]
[324811292,1714339950712,-1568.91635566,0.0001726,2]
[324811293,1714339950722,-520.38,0.0001726,2]
[324811294,1714339950731,-379.46697505,0.0001726,2]
[324811295,1714339950740,-1140.86,0.0001726,2]
[324811296,1714339950749,-550.09,0.0001726,2]
[324811297,1714339950759,-960.06,0.0001726,2]
[324811298,1714339950768,-1723.17,0.0001726,2]
[324811299,1714339950778,-555.79,0.0001726,2]